bitfinex/quotes_SOLUSD_20241122
["timestamp","ask_amount","ask_price","bid_price","bid_amount"]
[1732234340140,18.97117954,256.45,256.37,18.97117954]
[1732234340339,18.97117954,256.49,256.41,18.97117954]
[1732234341439,18.97117954,256.49,256.41,22.87107954]
[1732234341847,18.97117954,256.47,256.41,3.8999]
[1732234342139,18.97117954,256.47,256.41,22.87107954]
[1732234342354,18.97117954,256.49,256.41,22.87107954]
[1732234342552,3.8985,256.51,256.39,20.0]
[1732234342553,18.97117954,256.43,256.39,20.0]
[1732234343263,18.97117954,256.45,256.39,20.0]
[1732234343844,18.97117954,256.47,256.4,18.97117954]
[1732234345063,18.97117954,256.47,256.39,33.6509]
[1732234347260,18.97117954,256.43,256.39,9.7507]
[1732234347565,18.97117954,256.41,256.33,20.0]
[1732234347870,18.97117954,256.39,256.33,9.7527]
[1732234348366,18.97117954,256.37,256.33,9.7527]
[1732234348936,18.97117954,256.37,256.33,13.6539]
[1732234349173,18.97117954,256.37,256.33,9.7527]
[1732234350547,18.97117954,256.35,256.27,13.6572]
[1732234350769,18.97117954,256.33,256.27,13.6572]
[1732234352066,18.97117954,256.35,256.27,13.6572]
[1732234352572,18.97117954,256.37,256.29,18.97117954]
[1732234352864,18.97117954,256.39,256.31,18.97117954]
[1732234353070,18.97117954,256.37,256.29,18.97117954]
[1732234353248,3.8997,256.43,256.28,20.0]
[1732234353249,18.97117954,256.35,256.28,20.0]
[1732234353444,18.97117954,256.33,256.27,13.6572]
[1732234353659,18.97117954,256.31,256.27,9.7552]
[1732234354665,3.9011,256.34,256.27,9.7552]
[1732234354666,18.97117954,256.34,256.27,9.7552]
[1732234355208,18.97117954,256.36,256.28,18.97117954]
[1732234355471,18.97117954,256.41,256.32,24.97867954]
[1732234355975,18.97117954,256.43,256.36,18.97117954]
[1732234356170,18.97117954,256.45,256.38,18.97117954]
[1732234356641,11.84758037,256.45,256.38,11.84758037]
[1732234357083,3.8983,256.52,256.4,11.84758037]
[1732234357084,11.84758037,256.49,256.4,11.84758037]
[1732234357549,11.84758037,256.48,256.4,11.84758037]
[1732234357751,3.8983,256.52,256.33,33.74520762]
[1732234357752,11.84758037,256.47,256.39,11.84758037]
[1732234358073,11.84758037,256.47,256.4,13.6504]
[1732234358457,11.84758037,256.49,256.41,11.84758037]
[1732234359248,11.84758037,256.49,256.42,3.8998]
[1732234359965,3.8985,256.51,256.42,3.8998]
[1732234360163,11.84758037,256.48,256.42,3.8998]
[1732234360572,11.84758037,256.5,256.42,15.74738037]
[1732234360767,182.5825,256.64,256.49,11.84758037]
[1732234360768,3.8971,256.6,256.49,11.84758037]
[1732234360968,11.84758037,256.57,256.49,11.84758037]
[1732234361775,11.84758037,256.57,256.46,20.0]
[1732234361776,11.84758037,256.59,256.51,11.84758037]
[1732234361946,11.84758037,256.61,256.53,11.84758037]
[1732234362347,11.84758037,256.61,256.46,20.58471099]
[1732234362348,11.84758037,256.63,256.56,13.642]
[1732234362548,11.84758037,256.65,256.57,11.84758037]
[1732234362850,18.92599151,256.66,256.58,18.92599151]
[1732234363478,18.92599151,256.69,256.61,18.92599151]
[1732234363648,18.92599151,256.7,256.62,18.92599151]
[1732234364047,18.92599151,256.72,256.64,18.92599151]
[1732234364255,18.92599151,256.73,256.65,18.92599151]
[1732234364549,18.92599151,256.73,256.66,3.8962]
[1732234365178,18.92599151,256.75,256.67,18.92599151]
[1732234365368,18.92599151,256.77,256.69,18.92599151]
[1732234366161,18.92599151,256.75,256.67,22.82189151]
[1732234367981,18.92599151,256.73,256.67,3.8959]
[1732234368274,18.92599151,256.73,256.67,23.8959]
[1732234368777,18.92599151,256.69,256.61,18.92599151]
[1732234368960,18.92599151,256.67,256.61,20.0]
[1732234369162,18.92599151,256.65,256.6,9.7425]
[1732234370482,18.92599151,256.65,256.57,25.02499151]
[1732234370668,18.92599151,256.65,256.57,6.099]
[1732234371180,18.92599151,256.63,256.58,20.0]
[1732234371373,18.92599151,256.61,256.57,6.099]
[1732234371573,18.92599151,256.59,256.54,9.7447]
[1732234372559,18.92599151,256.61,256.54,9.7447]
[1732234373875,18.92599151,256.61,256.55,20.0]
[1732234374079,18.92599151,256.65,256.58,20.0]
[1732234374281,18.92599151,256.67,256.58,20.0]
[1732234375065,18.92599151,256.67,256.59,13.6403]
[1732234376397,18.92599151,256.65,256.59,13.6403]
[1732234376558,18.92599151,256.68,256.6,18.92599151]
[1732234377178,18.92599151,256.68,256.61,3.8969]
[1732234377785,18.92599151,256.7,256.62,18.92599151]
[1732234378281,18.92599151,256.72,256.64,18.92599151]
[1732234378783,18.92599151,256.74,256.66,18.92599151]
[1732234378985,18.92599151,256.76,256.68,18.92599151]
[1732234379280,18.92599151,256.76,256.69,3.8957]
[1732234379481,3.8943,256.79,256.68,28.66569151]
[1732234379482,18.92599151,256.74,256.68,9.7397]
[1732234379779,3.8943,256.79,256.68,9.7397]
[1732234379780,18.92599151,256.72,256.68,9.7397]
[1732234379990,18.92599151,256.72,256.68,13.6356]
[1732234380172,18.92599151,256.72,256.68,9.7397]
[1732234380364,18.92599151,256.7,256.65,20.0]
[1732234380572,18.92599151,256.66,256.63,9.7415]
[1732234380772,18.92599151,256.66,256.58,6.2262]
[1732234380773,18.92599151,256.66,256.6,3.897]
[1732234381172,18.92599151,256.64,256.6,3.897]
[1732234382484,18.92599151,256.64,256.59,29.7431]
[1732234382683,18.92599151,256.6,256.59,29.7431]
[1732234382887,18.92599151,256.6,256.57,3.8974]
[1732234383183,18.92599151,256.6,256.55,15.6824]
[1732234383389,18.92599151,256.6,256.55,19.5801]
[1732234383589,18.92599151,256.6,256.55,29.3247]
[1732234384668,18.92599151,256.6,256.56,23.8976]
[1732234385683,18.92599151,256.62,256.56,33.6419]
[1732234386587,18.92599151,256.66,256.59,18.92599151]
[1732234386782,18.92599151,256.66,256.6,13.6398]
[1732234387684,15.7004,256.72,256.6,13.6398]
[1732234387685,18.92599151,256.72,256.63,18.92599151]
[1732234387984,18.92599151,256.72,256.64,20.0]
[1732234388469,18.92599151,256.74,256.67,18.92599151]
[1732234388668,18.92599151,256.76,256.67,18.92599151]
[1732234388869,18.92599151,256.76,256.69,18.92599151]
[1732234389071,18.92599151,256.78,256.69,18.92599151]
[1732234389772,18.92599151,256.76,256.69,18.92599151]
[1732234390094,18.92599151,256.76,256.7,13.6344]
[1732234392490,18.92599151,256.79,256.71,38.92599151]
[1732234393574,18.92599151,256.79,256.72,13.6334]
[1732234394998,18.92599151,256.73,256.72,9.7382]
[1732234395173,18.92599151,256.74,256.72,9.7382]
[1732234395491,18.92599151,256.75,256.72,9.7382]
[1732234395870,3.8936,256.83,256.72,9.7382]
[1732234395871,18.92599151,256.74,256.72,9.7382]
[1732234396085,18.92599151,256.75,256.72,13.6334]
[1732234396972,18.92599151,256.75,256.72,9.7382]
[1732234397567,18.92599151,256.75,256.69,3.8957]
[1732234397777,18.92599151,256.71,256.66,33.6363]
[1732234398099,18.92599151,256.75,256.66,13.6363]
[1732234398100,18.92599151,256.69,256.66,13.6363]
[1732234398491,18.92599151,256.71,256.66,13.6363]
[1732234399467,18.92599151,256.67,256.62,15.366]
[1732234399672,18.92599151,256.65,256.63,3.8966]
[1732234400394,18.92599151,256.67,256.65,3.8963]
[1732234401395,18.92599151,256.72,256.65,32.56309151]
[1732234401569,18.92599151,256.74,256.67,18.92599151]
[1732234401771,18.92599151,256.76,256.67,18.92599151]
[1732234402196,18.92599151,256.74,256.67,18.92599151]
[1732234402775,11.82060289,256.74,256.67,13.6361]
[1732234402996,11.82060289,256.76,256.68,31.82060289]
[1732234403703,11.82060289,256.76,256.7,13.6344]
[1732234404785,18.91066469,256.76,256.7,13.6344]
[1732234407287,18.91066469,256.74,256.7,13.6344]
[1732234407714,18.91066469,256.74,256.68,20.0]
[1732234407875,18.91066469,256.69,256.65,13.6369]
[1732234408275,18.91066469,256.69,256.64,6.2262]
[1732234408501,18.91066469,256.67,256.64,6.2262]
[1732234408794,18.91066469,256.67,256.64,10.1226]
[1732234412501,18.91066469,256.69,256.64,10.1226]
[1732234412698,18.91066469,256.71,256.65,20.0]
[1732234412875,18.91066469,256.75,256.66,18.91066469]
[1732234413278,18.91066469,256.73,256.67,20.0]
[1732234413985,18.91066469,256.73,256.68,13.6356]
[1732234414491,18.91066469,256.73,256.68,9.7397]
[1732234414678,18.91066469,256.69,256.65,20.0]
[1732234415494,18.91066469,256.67,256.65,20.0]
[1732234415799,18.91066469,256.67,256.65,23.8963]
[1732234415979,18.91066469,256.67,256.65,20.0]
[1732234416174,18.91066469,256.67,256.63,9.7412]
[1732234416501,18.91066469,256.65,256.63,9.7412]
[1732234417497,18.91066469,256.65,256.63,13.6378]
[1732234418002,18.91066469,256.65,256.57,6.6657]
[1732234418192,18.91066469,256.65,256.59,20.0]
[1732234418509,18.91066469,256.63,256.58,13.6409]
[1732234420494,18.91066469,256.69,256.6,18.91066469]
[1732234420798,18.91066469,256.67,256.61,20.0]
[1732234421187,18.91066469,256.63,256.59,20.0]
[1732234421389,18.91066469,256.61,256.58,13.6409]
[1732234422497,18.91066469,256.61,256.52,18.91066469]
[1732234422696,18.91066469,256.58,256.54,3.8979]
[1732234422888,18.91066469,256.58,256.54,23.8979]
[1732234423090,18.91066469,256.56,256.53,13.6434]
[1732234423501,18.91066469,256.54,256.47,18.91066469]
[1732234423808,18.91066469,256.54,256.48,14.9362]
[1732234424196,18.91066469,256.54,256.48,13.6462]
[1732234424605,18.91066469,256.6,256.51,18.91066469]
[1732234425609,18.91066469,256.6,256.53,13.6435]
[1732234425816,18.91066469,256.6,256.54,20.0]
[1732234426018,9.7387,256.71,256.54,20.0]
[1732234426019,18.91066469,256.58,256.54,20.0]
[1732234426684,11.8359931,256.58,256.54,20.0]
[1732234427504,11.8359931,256.58,256.55,3.8978]
[1732234427804,11.8359931,256.56,256.53,9.7454]
[1732234428001,11.8359931,256.56,256.54,20.0]
[1732234428203,11.8359931,256.6,256.54,20.0]
[1732234429206,11.8359931,256.6,256.55,3.8978]
[1732234429585,11.8359931,256.58,256.56,20.0]
[1732234429787,11.8359931,256.58,256.48,19.4946]
[1732234429788,11.8359931,256.58,256.49,9.7466]
[1732234429988,11.8359931,256.54,256.49,9.7466]
[1732234431504,11.8359931,256.52,256.5,20.0]
[1732234432611,11.8359931,256.54,256.51,3.8984]
[1732234432905,3.8972,256.6,256.49,9.7466]
[1732234432906,11.8359931,256.52,256.49,9.7466]
[1732234433108,11.8359931,256.52,256.49,13.6453]
[1732234434211,11.8359931,256.52,256.49,9.7466]
[1732234434625,11.8359931,256.5,256.44,13.648]
[1732234434793,11.8359931,256.47,256.44,13.648]
[1732234435690,11.8359931,256.47,256.44,9.7486]
[1732234435894,11.8359931,256.51,256.44,9.7486]
[1732234438996,11.8359931,256.53,256.44,21.5845931]
[1732234440494,11.8359931,256.53,256.44,25.4840931]
[1732234440921,11.8359931,256.49,256.44,13.6481]
[1732234442210,11.8359931,256.51,256.44,13.6481]
[1732234442997,11.8359931,256.49,256.44,13.6481]
[1732234443412,11.8359931,256.51,256.44,13.1481]
[1732234444901,11.8359931,256.49,256.44,12.17073576]
[1732234445918,11.8359931,256.49,256.44,8.27123576]
[1732234447015,11.8359931,256.47,256.44,8.27123576]
[1732234447393,11.8359931,256.45,256.39,33.6508]
[1732234447612,11.8359931,256.43,256.39,13.6508]
[1732234448319,11.8359931,256.43,256.39,9.7506]
[1732234449799,11.8359931,256.45,256.39,9.7506]
[1732234450814,11.8359931,256.45,256.39,13.6509]
[1732234451406,11.8359931,256.41,256.34,9.7526]
[1732234451717,11.8359931,256.35,256.34,9.7526]
[1732234452745,11.8359931,256.35,256.32,3.9013]
[1732234453097,11.8359931,256.35,256.29,16.3904]
[1732234453426,11.8359931,256.35,256.3,3.9015]
[1732234453625,11.8359931,256.37,256.3,33.6556]
[1732234453807,11.8359931,256.39,256.3,45.4915931]
[1732234454000,11.8359931,256.39,256.32,11.8359931]
[1732234454205,11.8359931,256.39,256.3,33.6556]
[1732234454206,11.8359931,256.39,256.33,20.0]
[1732234454618,11.8359931,256.39,256.3,44.9998931]
[1732234454619,11.8359931,256.39,256.34,3.901]
[1732234455002,11.8359931,256.39,256.34,13.6536]
[1732234455306,11.8359931,256.39,256.35,20.0]
[1732234456131,11.8359931,256.41,256.36,9.7519]
[1732234456418,11.8359931,256.41,256.37,20.0]
[1732234457000,11.8359931,256.41,256.36,9.7519]
[1732234457312,2.5,256.54,256.36,9.7519]
[1732234457313,26.393,256.55,256.41,20.0]
[1732234457623,11.8359931,256.45,256.41,20.0]
[1732234457797,11.8359931,256.45,256.38,11.8359931]
[1732234458002,11.8359931,256.45,256.39,20.18]
[1732234458224,11.8359931,256.45,256.4,13.6504]
[1732234458419,11.8359931,256.47,256.4,13.6504]
[1732234458724,11.8359931,256.49,256.43,20.0]
[1732234459324,11.8359931,256.44,256.4,13.6504]
[1732234459506,11.8359931,256.42,256.4,13.6504]
[1732234460307,11.8359931,256.42,256.36,20.0]
[1732234460510,11.8359931,256.46,256.38,20.0]
[1732234460702,16.207,256.55,256.38,20.0]
[1732234460703,11.8359931,256.44,256.38,20.0]
[1732234461110,11.8359931,256.44,256.36,20.0]
[1732234461709,11.8359931,256.42,256.36,20.0]
[1732234462533,11.8359931,256.42,256.37,13.6521]
[1732234462832,11.8359931,256.42,256.38,20.0]
[1732234463213,11.8359931,256.44,256.38,20.0]
[1732234463532,11.8359931,256.52,256.44,20.0]
[1732234464431,11.8359931,256.52,256.46,20.0]
[1732234465512,11.8359931,256.52,256.47,13.6467]
[1732234466822,11.8359931,256.56,256.49,11.8359931]
[1732234467226,11.8359931,256.58,256.5,20.0]
[1732234467526,11.8359931,256.58,256.51,13.6446]
[1732234469702,11.8359931,256.56,256.51,9.7462]
[1732234469903,11.8359931,256.52,256.47,23.899]
[1732234471019,11.8359931,256.52,256.47,33.6467]
[1732234471836,11.8359931,256.54,256.47,33.6467]
[1732234473126,11.8359931,256.54,256.47,45.4826931]
[1732234473330,11.8359931,256.59,256.51,11.8359931]
[1732234474306,11.8359931,256.59,256.52,13.6441]
[1732234475616,11.8359931,256.63,256.55,11.8359931]
[1732234475806,11.8359931,256.61,256.53,31.8359931]
[1732234476012,11.8359931,256.57,256.53,20.0]
[1732234476217,11.8359931,256.59,256.53,20.0]
[1732234476412,11.8359931,256.59,256.54,3.898]
[1732234477529,11.8359931,256.59,256.53,20.0]
[1732234477838,11.8359931,256.57,256.53,20.0]
[1732234478212,11.8359931,256.55,256.52,13.644]
[1732234479431,11.8359931,256.62,256.49,3.8986]
[1732234479432,11.8359931,256.53,256.49,3.8986]
[1732234479615,11.8359931,256.51,256.47,13.6464]
[1732234484527,11.8359931,256.55,256.47,13.6464]
[1732234484729,11.8359931,256.57,256.49,11.8359931]
[1732234484933,11.8359931,256.53,256.47,13.6464]
[1732234487020,11.8359931,256.53,256.49,3.8987]
[1732234487544,11.8359931,256.57,256.49,13.6456]
[1732234487920,11.8359931,256.55,256.49,13.6456]
[1732234488238,11.8359931,256.53,256.49,13.6456]
[1732234492144,11.8359931,256.5,256.41,3.9]
[1732234492329,11.8359931,256.45,256.41,3.9]
[1732234493136,11.8359931,256.45,256.41,9.75]
[1732234494930,11.8359931,256.47,256.41,9.75]
[1732234495144,11.8359931,256.49,256.41,9.75]
[1732234497258,11.8359931,256.49,256.42,20.0]
[1732234497554,11.8359931,256.51,256.44,20.0]
[1732234498432,11.8359931,256.51,256.45,13.6477]
[1732234499248,11.8359931,256.49,256.45,13.6477]
[1732234499634,11.8359931,256.47,256.41,9.7499]
[1732234500151,11.8359931,256.47,256.42,20.0]
[1732234500729,11.8359931,256.45,256.42,20.0]
[1732234500932,11.8359931,256.45,256.41,9.7499]
[1732234501542,11.8359931,256.43,256.41,9.7499]
[1732234501933,11.8359931,256.43,256.36,33.6526]
[1732234503438,11.8359931,256.47,256.4,20.0]
[1732234503956,11.8359931,256.45,256.4,20.0]
[1732234504133,11.8359931,256.45,256.38,20.0]
[1732234504759,11.8359931,256.45,256.37,11.8359931]
[1732234504760,11.8359931,256.43,256.4,20.0]
[1732234505148,11.8359931,256.43,256.39,13.651]
[1732234505641,11.8359931,256.43,256.4,20.0]
[1732234505841,3.898,256.54,256.4,20.0]
[1732234505842,11.8359931,256.45,256.41,3.9]
[1732234506043,11.8359931,256.45,256.41,13.65]
[1732234506666,11.8359931,256.47,256.41,13.65]
[1732234507159,11.8359931,256.45,256.41,13.65]
[1732234507770,11.8359931,256.47,256.41,9.75]
[1732234508133,11.8359931,256.45,256.41,9.75]
[1732234508563,11.8359931,256.43,256.41,9.75]
[1732234508739,7.58349814,256.43,256.41,9.75]
[1732234509659,7.58349814,256.43,256.36,33.6526]
[1732234511248,7.58349814,256.41,256.36,29.7519]
[1732234511442,7.58349814,256.37,256.36,9.7519]
[1732234511642,7.58349814,256.37,256.31,13.6553]
[1732234511853,7.58349814,256.35,256.31,13.6553]
[1732234512677,11.85641062,256.35,256.31,13.6553]
[1732234513169,11.85641062,256.35,256.32,20.0]
[1732234513652,11.85641062,256.33,256.31,9.7538]
[1732234514167,11.85641062,256.33,256.23,18.9026]
[1732234514353,11.85641062,256.27,256.23,18.9026]
[1732234514668,11.85641062,256.27,256.23,15.0]
[1732234514853,28.08221062,256.36,256.23,15.0]
[1732234514854,11.85641062,256.25,256.23,15.0]
[1732234515268,15.75891062,256.25,256.23,15.0]
[1732234516454,23.776884,256.24,256.23,15.0]
[1732234517171,51.85909462,256.24,256.23,15.0]
[1732234517563,71.85909462,256.24,256.23,15.0]
[1732234518371,74.35909462,256.24,256.08,9.9606]
[1732234518579,11.85641062,256.13,256.08,9.9606]
[1732234518873,11.85641062,256.11,256.06,3.9052]
[1732234519769,11.85641062,256.11,256.05,9.7633]
[1732234520171,11.85641062,256.09,256.05,9.7633]
[1732234521186,11.85641062,256.13,256.05,9.7633]
[1732234521474,11.85641062,256.09,256.05,9.7633]
[1732234521687,11.85641062,256.11,256.05,9.7633]
[1732234522188,11.85641062,256.17,256.1,20.0]
[1732234522363,11.85641062,256.19,256.11,11.85641062]
[1732234523085,11.85641062,256.17,256.09,20.0]
[1732234523259,11.85641062,256.15,256.1,13.6665]
[1732234523460,3.9029,256.22,256.1,13.6665]
[1732234523461,11.85641062,256.13,256.1,13.6665]
[1732234523780,11.85641062,256.13,256.1,9.7618]
[1732234523964,11.85641062,256.11,256.05,23.9054]
[1732234524167,2.5,256.2,256.05,3.9054]
[1732234524168,11.85641062,256.06,256.05,3.9054]
[1732234524492,11.85641062,256.06,255.98,9.7661]
[1732234524661,11.85641062,256.1,255.98,9.7661]
[1732234524662,11.85641062,256.04,255.98,9.7661]
[1732234527656,2.5,256.16,255.98,9.7661]
[1732234527657,11.85641062,256.1,256.02,11.85641062]
[1732234527968,11.85641062,256.12,256.04,11.85641062]
[1732234528169,11.85641062,256.1,256.03,20.0]
[1732234528374,15.4221,256.18,256.04,11.85641062]
[1732234528375,11.85641062,256.13,256.04,11.85641062]
[1732234528664,11.85641062,256.13,256.06,11.85641062]
[1732234529064,11.85641062,256.15,256.08,11.85641062]
[1732234529269,11.85641062,256.15,256.07,20.0]
[1732234529270,11.85641062,256.17,256.1,11.85641062]
[1732234529585,11.85641062,256.17,256.11,13.6659]
[1732234530282,11.85641062,256.17,256.12,20.0]
[1732234530586,11.85641062,256.19,256.12,31.85641062]
[1732234531489,11.85641062,256.19,256.13,13.6648]
[1732234531781,11.85641062,256.21,256.14,20.0]
[1732234531981,11.85641062,256.27,256.18,11.85641062]
[1732234532379,11.85641062,256.27,256.2,11.85641062]
[1732234533068,11.85641062,256.29,256.21,20.0]
[1732234533785,11.85641062,256.29,256.22,13.66]
[1732234533959,11.85641062,256.29,256.23,20.0]
[1732234534165,11.85641062,256.33,256.27,20.0]
[1732234534362,11.85641062,256.31,256.23,11.85641062]
[1732234534562,11.85641062,256.29,256.23,20.0]
[1732234535080,11.85641062,256.31,256.23,31.85641062]
[1732234535468,11.85641062,256.33,256.26,20.0]
[1732234536163,11.85641062,256.33,256.25,20.0]
[1732234536366,11.85641062,256.33,256.25,31.85641062]
[1732234536662,11.85641062,256.37,256.3,20.0]
[1732234536973,11.85641062,256.47,256.36,20.0]
[1732234537172,11.85641062,256.47,256.38,11.85641062]
[1732234537480,11.85641062,256.47,256.39,3.9003]
[1732234539263,11.85641062,256.45,256.39,3.9003]
[1732234539888,11.85641062,256.49,256.4,11.85641062]
[1732234540182,11.85641062,256.47,256.39,13.651]
[1732234540384,20.1423,256.52,256.39,13.651]
[1732234540385,11.85641062,256.44,256.39,13.651]
[1732234540767,11.85641062,256.46,256.39,9.7507]
[1732234541764,11.85641062,256.48,256.39,9.7507]
[1732234541965,11.85641062,256.48,256.4,31.85641062]
[1732234542165,11.85641062,256.44,256.4,20.0]
[1732234542819,11.85641062,256.44,256.39,10.7507]
[1732234543081,11.85641062,256.44,256.39,14.651]
[1732234544887,11.85641062,256.42,256.39,14.651]
[1732234546290,11.85641062,256.4,256.39,1.0]
[1732234547588,3.8989,256.48,256.39,1.0]
[1732234547589,11.85641062,256.42,256.39,1.0]
[1732234548779,11.85641062,256.4,256.39,1.0]
[1732234550393,8.6648,256.6,256.39,1.0]
[1732234550577,11.85641062,256.48,256.39,26.50741062]
[1732234551189,11.85641062,256.46,256.39,26.50741062]
[1732234551702,11.85641062,256.48,256.39,26.50741062]
[1732234551880,11.85641062,256.48,256.41,11.85641062]
[1732234552197,11.85641062,256.5,256.42,33.6494]
[1732234554179,11.85641062,256.46,256.42,13.6494]
[1732234554383,3.8977,256.56,256.39,1.0]
[1732234554384,11.85641062,256.44,256.39,1.0]
[1732234554689,11.85641062,256.4,256.39,1.0]
[1732234556396,11.85641062,256.44,256.4,3.9001]
[1732234557777,11.85641062,256.44,256.4,13.6504]
[1732234558995,11.85641062,256.42,256.39,1.0]
[1732234563002,11.85641062,256.46,256.4,13.6504]
[1732234563297,11.85641062,256.48,256.4,13.6504]
[1732234564292,11.85641062,256.48,256.41,20.0]
[1732234564987,11.85641062,256.48,256.41,19.02530314]
[1732234565405,11.85641062,256.48,256.42,13.6494]
[1732234566487,11.85641062,256.48,256.42,9.7496]
[1732234567781,9.7418,256.63,256.45,11.85641062]
[1732234568005,11.85641062,256.57,256.49,11.85641062]
[1732234568312,15.7854,256.63,256.44,30.251584]
[1732234568313,11.85641062,256.53,256.46,20.0]
[1732234568486,11.85641062,256.47,256.44,6.4747]
[1732234570314,5.0,256.61,256.44,6.4747]
[1732234570315,11.85641062,256.49,256.44,6.4747]
[1732234570490,11.85641062,256.49,256.45,3.8993]
[1732234571913,13.6398,256.6,256.45,13.6477]
[1732234571914,11.85641062,256.51,256.45,13.6477]
[1732234573301,11.85641062,256.49,256.45,13.6477]
[1732234574007,11.85641062,256.47,256.43,3.8995]
[1732234574216,11.85641062,256.47,256.43,13.6487]
[1732234577099,11.85641062,256.49,256.43,13.6487]
[1732234579299,11.85641062,256.53,256.44,20.0]
[1732234579500,11.85641062,256.53,256.45,11.85641062]
[1732234579700,11.85641062,256.55,256.47,11.85641062]
[1732234580912,11.85641062,256.53,256.45,11.85641062]
[1732234581907,11.85641062,256.53,256.46,13.6473]
[1732234582110,11.85641062,256.53,256.44,3.8994]
[1732234582111,11.85641062,256.49,256.44,3.8994]
[1732234582315,11.85641062,256.47,256.43,20.0]
[1732234583798,11.85641062,256.51,256.44,13.6483]
[1732234584010,11.85641062,256.54,256.45,11.85641062]
[1732234584824,11.85641062,256.56,256.49,11.85641062]
[1732234585030,11.85641062,256.58,256.49,11.85641062]
[1732234585226,11.85641062,256.61,256.51,11.85641062]
[1732234585919,11.85641062,256.61,256.53,11.85641062]
[1732234587100,11.85641062,256.61,256.54,3.898]
[1732234587422,11.85641062,256.59,256.54,3.898]
[1732234587619,11.85641062,256.57,256.52,9.7458]
[1732234587838,11.85641062,256.57,256.52,13.6441]
[1732234588201,11.85641062,256.57,256.52,9.7458]
[1732234588906,11.85641062,256.57,256.52,13.6441]
[1732234589224,11.85641062,256.57,256.52,9.7458]
[1732234591206,11.85641062,256.61,256.53,11.85641062]
[1732234592116,11.85641062,256.61,256.54,3.898]
[1732234593625,11.85641062,256.59,256.52,9.7458]
[1732234593803,11.85641062,256.57,256.52,13.644]
[1732234594204,11.85641062,256.57,256.52,9.7458]
[1732234594719,11.85641062,256.55,256.5,6.5333]
[1732234594921,11.85641062,256.55,256.5,10.4318]
[1732234596125,11.85641062,256.55,256.47,21.60391062]
[1732234596126,11.85641062,256.51,256.48,20.0]
[1732234596513,11.85641062,256.51,256.47,9.7475]
[1732234600228,11.85641062,256.53,256.47,9.7475]
[1732234600605,11.85641062,256.51,256.47,9.7475]
[1732234603430,11.85641062,256.49,256.43,20.0]
[1732234603614,3.8985,256.51,256.43,20.0]
[1732234603615,11.85641062,256.47,256.43,20.0]
[1732234605025,11.85641062,256.47,256.43,23.8996]
[1732234605332,11.85641062,256.53,256.43,45.50521062]
[1732234605633,11.85641062,256.53,256.45,11.85641062]
[1732234606641,11.85641062,256.53,256.46,13.6473]
[1732234608629,11.85641062,256.51,256.46,9.7481]
[1732234609218,11.85641062,256.49,256.46,9.7481]
[1732234610361,11.85641062,256.51,256.46,9.7481]
[1732234610533,11.85641062,256.48,256.46,9.7481]
[1732234610814,11.85641062,256.5,256.46,9.7481]
[1732234612425,11.85641062,256.5,256.42,20.0]
[1732234612630,11.85641062,256.46,256.42,23.8997]
[1732234613330,11.85641062,256.48,256.42,33.6493]
[1732234613840,11.85641062,256.52,256.43,11.85641062]
[1732234614138,11.85641062,256.54,256.47,11.85641062]
[1732234614443,11.85641062,256.59,256.49,11.85641062]
[1732234614733,11.85641062,256.57,256.49,11.85641062]
[1732234615530,11.85641062,256.57,256.5,13.6451]
[1732234617145,11.85641062,256.59,256.51,11.85641062]
[1732234617439,15.3901,256.64,256.5,13.6451]
[1732234617440,11.85641062,256.61,256.53,11.85641062]
[1732234617811,11.85641062,256.65,256.58,11.85641062]
[1732234618018,11.85641062,256.69,256.6,11.85641062]
[1732234618241,11.85641062,256.69,256.61,20.0]
[1732234619334,11.85641062,256.69,256.62,3.8968]
[1732234619832,11.85641062,256.67,256.62,3.8968]
[1732234620415,11.85641062,256.67,256.6,6.4271]
[1732234620623,11.85641062,256.61,256.54,6.4271]
[1732234620938,8.8956,256.7,256.55,11.85641062]
[1732234620939,11.85641062,256.63,256.55,11.85641062]
[1732234621436,11.85641062,256.63,256.56,3.8977]
[1732234621641,11.85641062,256.63,256.56,13.642]
[1732234622421,11.85641062,256.59,256.56,9.7443]
[1732234622935,11.85641062,256.57,256.56,9.7443]
[1732234623113,11.85641062,256.57,256.52,20.0]
[1732234623322,11.85641062,256.57,256.52,23.8982]